[Event "Teplice Open 2019"]
[Site "Teplice"]
[Date "2019.06.18"]
[Round "4.35"]
[White "Buchcar, Tomas"]
[Black "Eden, James"]
[Result "0-1"]
[ECO "A11"]
[WhiteElo "2140"]
[BlackElo "2346"]
[Annotator "NA"]
[PlyCount "114"]
[EventDate "2019.06.15"]
[EventType "swiss"]
[EventCountry "CZE"]
[SourceTitle "playchess.com"]
[Source "ChessBase"]
[SourceQuality "1"]
[TimeControl "40/5400+30:1800+30"]

1. c4 {[%emt 0:00:00]} c6 {[%emt 0:00:00]} 2. g3 {[%emt 0:00:00]} d5 {[%emt 0:00:45]} 3. cxd5 {[%emt 0:00:19]} cxd5 {[%emt 0:02:40]} 4. Bg2 {[%emt 0:00:28]} Nf6 {[%emt 0:02:59]} 5. Nf3 {[%emt 0:02:22]} Nc6 {[%emt 0:00:38]} 6. O-O {[%emt 0:04:00]} e5 {[%emt 0:01:49]} 7. d4 {[%emt 0:09:11]} e4 {[%emt 0:02:11]} 8. Ne5 {[%emt 0:00:11]} Qb6 {[%emt 0:04:16]} 9. Nxc6 {[%emt 0:02:11]} bxc6 {[%emt 0:00:14]} 10. Nc3 {[%emt 0:00:45]} Be7 {[%emt 0:03:45]} 11. Na4 {[%emt 0:01:43]} Qb5 {[%emt 0:01:40]} 12. a3 {[%emt 0:11:07]} O-O {[%emt 0:04:58]} 13. Bf4 {[%emt 0:11:00]} Bg4 {[%emt 0:06:55]} 14. Re1 {[%emt 0:03:28]} Nd7 {[%emt 0:00:50]} 15. f3 {[%emt 0:12:00]} exf3 {[%emt 0:05:16]} 16. exf3 {[%emt 0:00:24]} Be6 {[%emt 0:00:12]} 17. Bf1 {[%emt 0:03:12]} Qb7 {[%emt 0:00:23]} 18. Qc2 {[%emt 0:02:50]} a5 {[%emt 0:16:00]} 19. Rac1 {[%emt 0:00:35]} Rfc8 {[%emt 0:00:47]} 20. Be3 {[%emt 0:03:54]} Rab8 {[%emt 0:09:43]} 21. Bd3 {[%emt 0:00:45]} g6 {[%emt 0:03:37]} 22. Bf4 {[%emt 0:00:29]} Bf6 {[%emt 0:00:12]} 23. Bxb8 {[%emt 0:08:30]} Bxd4+ {[%emt 0:01:47]} 24. Kg2 {[%emt 0:00:29]} Qxb8 {[%emt 0:00:31]} 25. Qd2 {[%emt 0:01:50]} Qa7 {[%emt 0:05:13]} 26. Qf4 {[%emt 0:01:42]} Bg7 {[%emt 0:02:05]} 27. Rc2 {[%emt 0:07:39]} c5 {[%emt 0:02:13]} 28. Bb5 {[%emt 0:00:35]} Nf8 {[%emt 0:01:22]} 29. Qd6 {[%emt 0:01:17]} c4 {[%emt 0:00:44]} 30. Nc3 {[%emt 0:02:41]} d4 {[%emt 0:01:54]} 31. Ne4 {[%emt 0:00:18]} d3 {[%emt 0:01:56]} 32. Rd2 {[%emt 0:00:10]} a4 {[%emt 0:04:12]} 33. Qb4 {[%emt 0:02:17]} Rb8 {[%emt 0:03:31]} 34. Qxa4 {[%emt 0:01:42]} Qxa4 {[%emt 0:01:12]} 35. Bxa4 {[%emt 0:00:04]} Rxb2 {[%emt 0:00:15]} 36. Rxb2 {[%emt 0:01:08]} Bxb2 {[%emt 0:00:08]} 37. Nc5 {[%emt 0:00:37]} Bxa3 {[%emt 0:03:26]} 38. Nxe6 {[%emt 0:05:01]} Nxe6 {[%emt 0:00:08]} 39. Bb5 {[%emt 0:00:16]} d2 {[%emt 0:00:28]} 40. Rd1 {[%emt 0:01:09]} c3 {[%emt 0:00:13]} 41. Ba4 {[%emt 0:30:42]} Nd4 {[%emt 0:08:47]} 42. Kf2 {[%emt 0:00:00]} Bc1 {[%emt 0:00:30]} 43. Ke3 {[%emt 0:00:00]} c2 {[%emt 0:00:22]} 44. Rxd2 {[%emt 0:00:00]} Bxd2+ {[%emt 0:00:19]} 45. Kxd2 {[%emt 0:00:00]} Nxf3+ {[%emt 0:00:14]} 46. Kxc2 {[%emt 0:00:00]} Nxh2 {[%emt 0:00:07]} 47. Kd3 {[%emt 0:00:00]} Kg7 {[%emt 0:01:31]} 48. Bd1 {[%emt 0:00:00]} Kf6 {[%emt 0:00:20]} 49. Ke4 {[%emt 0:00:00]} Kg5 {[%emt 0:00:44]} 50. Be2 {[%emt 0:00:00]} f5+ {[%emt 0:01:23]} 51. Ke3 {[%emt 0:00:00]} Ng4+ {[%emt 0:00:13]} 52. Kf3 {[%emt 0:00:00]} Kf6 {[%emt 0:00:37]} 53. Ba6 {[%emt 0:00:00]} Ke5 {[%emt 0:00:14]} 54. Bb7 {[%emt 0:00:00]} Nf6 {[%emt 0:00:16]} 55. Ba6 {[%emt 0:00:00]} g5 {[%emt 0:00:36]} 56. Bd3 {[%emt 0:00:00]} g4+ {[%emt 0:00:20]} 57. Ke3 {[%emt 0:00:00]} Ne4 {[%emt 0:00:28] Kd4+} 0-1

[Event "Teplice Open 2019"]
[Site "Teplice"]
[Date "2019.06.18"]
[Round "4.36"]
[White "Paszewski, Mateusz"]
[Black "Furman, Boris"]
[Result "1/2-1/2"]
[ECO "B31"]
[WhiteElo "2346"]
[BlackElo "2144"]
[Annotator "NA"]
[PlyCount "87"]
[EventDate "2019.06.15"]
[EventType "swiss"]
[EventCountry "CZE"]
[SourceTitle "playchess.com"]
[Source "ChessBase"]
[SourceQuality "1"]
[TimeControl "40/5400+30:1800+30"]

1. e4 {[%emt 0:00:00]} c5 {[%emt 0:00:00]} 2. Nf3 {[%emt 0:00:00]} Nc6 {[%emt 0:00:00]} 3. Bb5 {[%emt 0:00:00]} g6 {[%emt 0:00:00]} 4. Bxc6 {[%emt 0:00:00]} bxc6 {[%emt 0:00:01]} 5. d4 {[%emt 0:00:00]} Bg7 {[%emt 0:02:18]} 6. dxc5 {[%emt 0:00:07]} Qa5+ {[%emt 0:01:59]} 7. Nbd2 {[%emt 0:00:58]} Qxc5 {[%emt 0:01:54]} 8. c4 {[%emt 0:00:37]} Nf6 {[%emt 0:05:42]} 9. O-O {[%emt 0:03:23]} O-O {[%emt 0:00:24]} 10. a3 {[%emt 0:04:15]} d6 {[%emt 0:05:25]} 11. b4 {[%emt 0:03:11]} Qb6 {[%emt 0:01:15]} 12. Bb2 {[%emt 0:01:35]} a5 {[%emt 0:02:11]} 13. Bc3 {[%emt 0:04:40]} axb4 {[%emt 0:01:26]} 14. axb4 {[%emt 0:00:31]} Bd7 {[%emt 0:04:03]} 15. h3 {[%emt 0:07:21]} Nh5 {[%emt 0:06:48]} 16. Bxg7 {[%emt 0:16:15]} Kxg7 {[%emt 0:00:33]} 17. Qb3 {[%emt 0:00:14]} Rfb8 {[%emt 0:07:04]} 18. Rab1 {[%emt 0:04:28]} f6 {[%emt 0:03:41]} 19. Rfe1 {[%emt 0:05:12]} Ra7 {[%emt 0:08:42]} 20. Qc3 {[%emt 0:02:49]} Nf4 {[%emt 0:04:50]} 21. c5 {[%emt 0:08:44]} Qa6 {[%emt 0:02:45]} 22. cxd6 {[%emt 0:04:49]} exd6 {[%emt 0:03:44]} 23. Qe3 {[%emt 0:07:53]} g5 {[%emt 0:06:32]} 24. Kh2 {[%emt 0:04:19]} Rab7 {[%emt 0:01:22]} 25. h4 {[%emt 0:00:47]} h6 {[%emt 0:01:16]} 26. g3 {[%emt 0:02:07]} Ne6 {[%emt 0:02:15]} 27. Nd4 {[%emt 0:01:30]} Nxd4 {[%emt 0:00:43]} 28. Qxd4 {[%emt 0:00:14]} Qb6 {[%emt 0:00:30]} 29. Qxb6 {[%emt 0:05:06]} Rxb6 {[%emt 0:00:06]} 30. hxg5 {[%emt 0:00:11]} hxg5 {[%emt 0:00:19]} 31. Nc4 {[%emt 0:00:37]} Rxb4 {[%emt 0:00:19]} 32. Rxb4 {[%emt 0:05:44]} Rxb4 {[%emt 0:00:07]} 33. Nxd6 {[%emt 0:00:02]} Rd4 {[%emt 0:02:24]} 34. Nb7 {[%emt 0:01:19]} Bg4 {[%emt 0:02:10]} 35. Kg2 {[%emt 0:01:15]} Rd3 {[%emt 0:01:25]} 36. f4 {[%emt 0:06:18]} Rd2+ {[%emt 0:00:30]} 37. Kg1 {[%emt 0:00:01]} gxf4 {[%emt 0:03:27]} 38. gxf4 {[%emt 0:00:02]} Rd1 {[%emt 0:04:52]} 39. Rxd1 {[%emt 0:00:47]} Bxd1 {[%emt 0:00:08]} 40. Kf2 {[%emt 0:00:06]} Kf8 {[%emt 0:03:12]} 41. Ke3 {[%emt 0:30:01]} Ke7 {[%emt 0:30:13]} 42. Kd4 {[%emt 0:00:53]} Bc2 {[%emt 0:00:46]} 43. Nc5 {[%emt 0:02:13]} Kd6 {[%emt 0:00:41]} 44. e5+ {[%emt 0:00:20] Kxe5+ Ke4+} 1/2-1/2

[Event "Teplice Open 2019"]
[Site "Teplice"]
[Date "2019.06.18"]
[Round "4.37"]
[White "Chval st., Zdenek"]
[Black "Efroimski, Marsel"]
[Result "1/2-1/2"]
[ECO "D31"]
[WhiteElo "2138"]
[BlackElo "2327"]
[Annotator "NA"]
[PlyCount "111"]
[EventDate "2019.06.15"]
[EventType "swiss"]
[EventCountry "CZE"]
[SourceTitle "playchess.com"]
[Source "ChessBase"]
[SourceQuality "1"]
[TimeControl "40/5400+30:1800+30"]

1. d4 {[%emt 0:00:00]} e6 {[%emt 0:00:52]} 2. Nf3 {[%emt 0:00:55]} d5 {[%emt 0:00:56]} 3. c4 {[%emt 0:00:53]} c6 {[%emt 0:02:27]} 4. Nc3 {[%emt 0:00:17]} dxc4 {[%emt 0:02:21]} 5. a4 {[%emt 0:00:11]} Bb4 {[%emt 0:01:07]} 6. g3 {[%emt 0:15:16]} b5 {[%emt 0:15:51]} 7. Bg2 {[%emt 0:01:06]} Bb7 {[%emt 0:00:05]} 8. O-O {[%emt 0:03:27]} a6 {[%emt 0:00:46]} 9. Ne5 {[%emt 0:12:26]} f6 {[%emt 0:07:22]} 10. Ng4 {[%emt 0:05:13]} Qd7 {[%emt 0:04:26]} 11. e4 {[%emt 0:22:39]} Ne7 {[%emt 0:01:45]} 12. h4 {[%emt 0:05:17]} O-O {[%emt 0:02:17]} 13. Be3 {[%emt 0:00:54]} Nc8 {[%emt 0:05:57]} 14. h5 {[%emt 0:04:28]} h6 {[%emt 0:06:05]} 15. Qf3 {[%emt 0:08:17]} Kh8 {[%emt 0:03:36]} 16. Rfd1 {[%emt 0:05:09]} Qf7 {[%emt 0:02:19]} 17. Nh2 {[%emt 0:07:10]} Nd7 {[%emt 0:02:33]} 18. Nf1 {[%emt 0:01:37]} Ncb6 {[%emt 0:03:30]} 19. a5 {[%emt 0:01:12]} Nc8 {[%emt 0:00:34]} 20. g4 {[%emt 0:01:43]} Qe8 {[%emt 0:04:12]} 21. Ng3 {[%emt 0:00:13]} Ne7 {[%emt 0:01:22]} 22. Qe2 {[%emt 0:00:58]} Qd8 {[%emt 0:00:41]} 23. f4 {[%emt 0:00:27]} Bxa5 {[%emt 0:02:35]} 24. g5 f5 {[%emt 0:00:02]} 25. gxh6 {[%emt 0:01:03]} gxh6 {[%emt 0:02:46]} 26. exf5 {[%emt 0:00:21]} Rg8 {[%emt 0:06:28]} 27. Bf2 {[%emt 0:01:45]} Bc7 {[%emt 0:06:21]} 28. fxe6 {[%emt 0:00:08]} Bxf4 {[%emt 0:04:45]} 29. d5 {[%emt 0:00:48]} Bxg3 {[%emt 0:03:02]} 30. Bd4+ {[%emt 0:00:13]} Be5 {[%emt 0:00:53]} 31. Bxe5+ {[%emt 0:00:01]} Nxe5 {[%emt 0:00:04]} 32. Qxe5+ {[%emt 0:00:07]} Rg7 {[%emt 0:00:06]} 33. dxc6 {[%emt 0:00:31]} Qb6+ {[%emt 0:00:19]} 34. Kh2 {[%emt 0:00:22]} Qf2 {[%emt 0:03:15]} 35. Qxg7+ {[%emt 0:01:19]} Kxg7 {[%emt 0:00:06]} 36. cxb7 {[%emt 0:00:01]} Rg8 {[%emt 0:01:05]} 37. Rf1 {[%emt 0:00:39]} Qh4+ {[%emt 0:00:32]} 38. Kg1 {[%emt 0:00:02]} Qd4+ {[%emt 0:04:32]} 39. Kh2 {[%emt 0:01:44]} Qd6+ {[%emt 0:00:12]} 40. Kh1 {[%emt 0:00:31]} Qxe6 {[%emt 0:01:12]} 41. Rae1 {[%emt 0:08:44]} Qd7 {[%emt 0:07:57]} 42. Ne4 {[%emt 0:08:37]} Nf5 {[%emt 0:16:34]} 43. Bh3 {[%emt 0:10:07]} Ng3+ {[%emt 0:00:14]} 44. Kg2 {[%emt 0:00:09]} Qxb7 {[%emt 0:00:56]} 45. Kxg3 {[%emt 0:00:08]} Kh8+ {[%emt 0:01:41]} 46. Kh2 {[%emt 0:00:46]} Qg7 {[%emt 0:01:01]} 47. Rf6 {[%emt 0:03:58]} b4 {[%emt 0:01:33]} 48. Kh1 {[%emt 0:01:19]} c3 {[%emt 0:03:55]} 49. bxc3 {[%emt 0:00:01]} bxc3 {[%emt 0:00:02]} 50. Rg6 {[%emt 0:00:32]} Qb7 {[%emt 0:01:12]} 51. Rxh6+ {[%emt 0:00:19]} Kg7 {[%emt 0:00:05]} 52. Rg6+ {[%emt 0:00:05]} Kh7 {[%emt 0:00:28]} 53. Bg2 {[%emt 0:01:35]} Rxg6 {[%emt 0:00:20]} 54. Nf6+ {[%emt 0:00:15]} Rxf6 {[%emt 0:00:10]} 55. Bxb7 {[%emt 0:00:06]} Kh6 {[%emt 0:00:39]} 56. Rc1 {[%emt 0:00:16]} 1/2-1/2

[Event "Teplice Open 2019"]
[Site "Teplice"]
[Date "2019.06.19"]
[Round "5.5"]
[White "Warmerdam, Max"]
[Black "Tari, Aryan"]
[Result "1/2-1/2"]
[ECO "B33"]
[WhiteElo "2475"]
[BlackElo "2623"]
[Annotator "RC"]
[PlyCount "83"]
[EventDate "2019.06.15"]
[EventType "swiss"]
[EventCountry "CZE"]
[SourceTitle "playchess.com"]
[Source "ChessBase"]
[SourceQuality "1"]
[TimeControl "40/5400+30:1800+30"]

1. e4 {[%emt 0:00:00]} c5 {[%emt 0:00:00]} 2. Nf3 {[%emt 0:00:00]} Nc6 {[%emt 0:00:00]} 3. d4 {[%emt 0:00:00]} cxd4 {[%emt 0:00:00]} 4. Nxd4 {[%emt 0:00:00]} Nf6 {[%emt 0:00:02]} 5. Nc3 {[%emt 0:00:00]} e5 {[%emt 0:00:04]} 6. Ndb5 {[%emt 0:00:00]} d6 {[%emt 0:00:05]} 7. Nd5 {[%emt 0:00:00]} Nxd5 {[%emt 0:00:28]} 8. exd5 {[%emt 0:00:04]} Nb8 {[%emt 0:00:18]} 9. c4 {[%emt 0:00:50]} Be7 {[%emt 0:01:30]} 10. c5 {[%emt 0:00:10]} O-O {[%emt 0:03:11]} 11. Bd3 {[%emt 0:00:41]} Na6 {[%emt 0:08:15]} 12. cxd6 {[%emt 0:00:06]} Bxd6 {[%emt 0:00:12]} 13. O-O {[%emt 0:00:06]} Nc7 {[%emt 0:05:01]} 14. Bg5 {[%emt 0:35:22]} Qxg5 {[%emt 0:07:54]} 15. Nxd6 {[%emt 0:00:28]} Ne8 {[%emt 0:03:24]} 16. Nc4 {[%emt 0:15:55]} b5 {[%emt 0:04:48]} 17. Na5 {[%emt 0:02:43]} Nd6 {[%emt 0:02:56]} 18. Qc1 {[%emt 0:02:35]} Qf6 {[%emt 0:03:05]} 19. Qc5 {[%emt 0:03:29]} a6 {[%emt 0:09:42]} 20. Rfe1 {[%emt 0:04:14]} Bd7 {[%emt 0:04:34]} 21. Nc6 {[%emt 0:02:00]} Rac8 {[%emt 0:05:11]} 22. a4 {[%emt 0:04:34]} e4 {[%emt 0:01:36]} 23. Bf1 {[%emt 0:01:18]} Nb7 {[%emt 0:04:36]} 24. Qe7 {[%emt 0:10:12]} Bxc6 {[%emt 0:15:24]} 25. Qxf6 {[%emt 0:00:09]} gxf6 {[%emt 0:00:04]} 26. dxc6 {[%emt 0:00:05]} Rxc6 {[%emt 0:00:27]} 27. axb5 {[%emt 0:00:41]} axb5 {[%emt 0:00:02]} 28. Rxe4 {[%emt 0:00:34]} Nd6 {[%emt 0:00:11]} 29. Rg4+ {[%emt 0:01:18]} Kh8 {[%emt 0:00:01]} 30. Rd1 {[%emt 0:02:56]} Re8 {[%emt 0:02:14]} 31. Rgd4 {[%emt 0:01:46]} Re6 {[%emt 0:00:55]} 32. g3 {[%emt 0:00:19]} Kg7 {[%emt 0:01:13]} 33. Bg2 {[%emt 0:02:08]} Rb6 {[%emt 0:00:11]} 34. Bd5 {[%emt 0:01:33]} Re5 {[%emt 0:01:17]} 35. Ra1 {[%emt 0:03:50]} f5 {[%emt 0:03:54]} 36. Ra7 {[%emt 0:02:51]} Kf6 {[%emt 0:00:02]} 37. b4 {[%emt 0:02:10]} h6 {[%emt 0:00:37]} 38. Bf3 {[%emt 0:01:02]} Re7 {[%emt 0:00:53]} 39. Ra8 {[%emt 0:00:21]} Ne4 {[%emt 0:01:09]} 40. Rd5 {[%emt 0:02:38]} Ng5 {[%emt 0:08:52]} 41. Bh5 {[%emt 0:04:56]} Ne4 {[%emt 0:07:09]} 42. Bf3 {[%emt 0:23:04] Ke5} 1/2-1/2

[Event "Teplice Open 2019"]
[Site "Teplice"]
[Date "2019.06.19"]
[Round "5.6"]
[White "Santos Latasa, Jaime"]
[Black "Gumularz, Szymon"]
[Result "1/2-1/2"]
[ECO "E46"]
[WhiteElo "2588"]
[BlackElo "2495"]
[Annotator "ChessBase"]
[PlyCount "169"]
[EventDate "2019.06.15"]
[EventType "swiss"]
[EventCountry "CZE"]
[SourceTitle "playchess.com"]
[Source "ChessBase"]
[SourceQuality "1"]
[TimeControl "40/5400+30:1800+30"]

1. d4 {[%emt 0:00:00]} Nf6 {[%emt 0:00:00]} 2. c4 {[%emt 0:00:00]} e6 {[%emt 0:00:00]} 3. Nc3 {[%emt 0:00:00]} Bb4 {[%emt 0:00:00]} 4. e3 {[%emt 0:00:00]} O-O {[%emt 0:00:13]} 5. Nge2 {[%emt 0:00:00]} c6 {[%emt 0:00:49]} 6. a3 {[%emt 0:00:14]} Ba5 {[%emt 0:00:05]} 7. c5 {[%emt 0:00:07]} d5 {[%emt 0:01:14]} 8. cxd6 {[%emt 0:00:10]} Qxd6 {[%emt 0:00:07]} 9. b4 {[%emt 0:00:05]} Bc7 {[%emt 0:00:04]} 10. g3 {[%emt 0:00:05]} Qe7 {[%emt 0:04:00]} 11. Bg2 {[%emt 0:00:25]} e5 {[%emt 0:00:50]} 12. O-O {[%emt 0:01:31]} e4 {[%emt 0:06:16]} 13. Qc2 {[%emt 0:03:58]} Bf5 {[%emt 0:06:19]} 14. b5 {[%emt 0:06:39]} Nbd7 {[%emt 0:03:54]} 15. bxc6 {[%emt 0:01:50]} bxc6 {[%emt 0:00:17]} 16. Bd2 {[%emt 0:00:05]} Rac8 {[%emt 0:03:24]} 17. Rfb1 {[%emt 0:02:44]} h5 {[%emt 0:21:17]} 18. Rb7 {[%emt 0:02:27]} Bb8 {[%emt 0:00:23]} 19. Na4 {[%emt 0:05:32]} Qe6 {[%emt 0:01:39]} 20. Nc5 {[%emt 0:10:18]} Nxc5 {[%emt 0:01:24]} 21. dxc5 {[%emt 0:00:09]} Be5 {[%emt 0:17:13]} 22. Bc3 {[%emt 0:09:09]} Bh3 {[%emt 0:06:03]} 23. Bxe5 {[%emt 0:03:22]} Qxe5 {[%emt 0:00:09]} 24. Qb2 {[%emt 0:02:54]} Qxb2 {[%emt 0:00:44]} 25. Rxb2 {[%emt 0:00:08]} Bxg2 {[%emt 0:00:05]} 26. Kxg2 {[%emt 0:00:11]} Nd7 {[%emt 0:00:07]} 27. Rc1 {[%emt 0:00:42]} Rb8 {[%emt 0:03:56]} 28. Rb4 {[%emt 0:00:48]} Rxb4 {[%emt 0:08:36]} 29. axb4 {[%emt 0:00:32]} Ne5 {[%emt 0:01:05]} 30. Nd4 {[%emt 0:01:28]} a6 {[%emt 0:06:48]} 31. Ra1 {[%emt 0:02:18]} Ra8 {[%emt 0:00:11]} 32. b5 {[%emt 0:05:00]} cxb5 {[%emt 0:01:04]} 33. Nxb5 {[%emt 0:00:06]} Rc8 {[%emt 0:05:38]} 34. Rxa6 {[%emt 0:00:51]} Rxc5 {[%emt 0:01:09]} 35. Nd6 {[%emt 0:00:10]} Rc2 {[%emt 0:00:35]} 36. Nxe4 {[%emt 0:05:00]} Ng4 {[%emt 0:00:45]} 37. Ra3 {[%emt 0:00:57]} f5 {[%emt 0:00:58]} 38. h3 {[%emt 0:00:19]} Nxe3+ {[%emt 0:00:28]} 39. Rxe3 {[%emt 0:00:07]} fxe4 {[%emt 0:00:01]} 40. Rxe4 {[%emt 0:00:08]} Kf7 {[%emt 0:00:49]} 41. Kf3 {[%emt 0:32:32]} g6 {[%emt 0:30:07]} 42. Re5 {[%emt 0:00:28]} Kf6 {[%emt 0:00:00]} 43. Rd5 {[%emt 0:00:00]} Ra2 {[%emt 0:00:00]} 44. Rd6+ {[%emt 0:00:00]} Kg7 {[%emt 0:00:00]} 45. Ke3 {[%emt 0:00:00]} Rb2 {[%emt 0:00:00]} 46. g4 {[%emt 0:00:00]} hxg4 {[%emt 0:00:00]} 47. hxg4 {[%emt 0:00:00]} Rb4 {[%emt 0:00:00]} 48. Rd4 {[%emt 0:00:00]} Rb5 {[%emt 0:00:00]} 49. f4 {[%emt 0:00:00]} Rb1 {[%emt 0:00:00]} 50. Rd7+ {[%emt 0:00:00]} Kg8 {[%emt 0:00:00]} 51. Ra7 {[%emt 0:00:00]} Rb4 {[%emt 0:00:00]} 52. Kf3 {[%emt 0:00:00]} Rc4 {[%emt 0:00:00]} 53. Kg3 {[%emt 0:00:00]} Rb4 {[%emt 0:00:00]} 54. Rd7 {[%emt 0:00:00]} Ra4 {[%emt 0:00:00]} 55. Kf3 {[%emt 0:00:00]} Rb4 {[%emt 0:00:00]} 56. g5 {[%emt 0:00:00]} Ra4 {[%emt 0:00:00]} 57. Ke3 {[%emt 0:00:00]} Rb4 {[%emt 0:00:00]} 58. Rd4 {[%emt 0:00:00]} Rb1 {[%emt 0:00:00]} 59. Rd8+ {[%emt 0:00:00]} Kf7 {[%emt 0:00:00]} 60. Rd7+ {[%emt 0:00:00]} Kg8 {[%emt 0:00:00]} 61. Ke4 {[%emt 0:00:00]} Re1+ {[%emt 0:00:00]} 62. Kd5 {[%emt 0:00:00]} Re2 {[%emt 0:00:00]} 63. Ra7 {[%emt 0:00:00]} Re1 {[%emt 0:00:00]} 64. Ra6 {[%emt 0:00:00]} Kg7 {[%emt 0:00:00]} 65. Re6 {[%emt 0:00:00]} Rf1 {[%emt 0:00:00]} 66. Ke5 {[%emt 0:00:00]} Re1+ {[%emt 0:00:00]} 67. Kd6 {[%emt 0:00:00]} Rd1+ {[%emt 0:00:00]} 68. Kc5 {[%emt 0:00:00]} Rc1+ {[%emt 0:00:00]} 69. Kd4 {[%emt 0:00:00]} Rd1+ {[%emt 0:00:00]} 70. Ke5 {[%emt 0:00:00]} Re1+ {[%emt 0:00:00]} 71. Kd6 {[%emt 0:00:00]} Rd1+ {[%emt 0:00:00]} 72. Ke7 {[%emt 0:00:00]} Rd4 {[%emt 0:00:00]} 73. Rf6 {[%emt 0:00:00]} Re4+ {[%emt 0:00:00]} 74. Kd6 {[%emt 0:00:00]} Ra4 {[%emt 0:00:00]} 75. Ke5 {[%emt 0:00:00]} Ra5+ {[%emt 0:00:00]} 76. Ke4 {[%emt 0:00:00]} Ra4+ {[%emt 0:00:00]} 77. Kf3 {[%emt 0:00:00]} Rb4 {[%emt 0:00:00]} 78. Rd6 {[%emt 0:00:00]} Ra4 {[%emt 0:00:00]} 79. Rd7+ {[%emt 0:00:00]} Kg8 {[%emt 0:00:00]} 80. Ke3 {[%emt 0:00:00]} Rb4 {[%emt 0:00:00]} 81. Rd4 {[%emt 0:00:00]} Rb1 {[%emt 0:00:19]} 82. Rd8+ {[%emt 0:00:00]} Kg7 {[%emt 0:00:08]} 83. Rd7+ {[%emt 0:00:00]} Kg8 {[%emt 0:00:06]} 84. Rd8+ {[%emt 0:00:00]} Kg7 {[%emt 0:00:04]} 85. Rd7+ {[%emt 0:00:03]} 1/2-1/2

[Event "Teplice Open 2019"]
[Site "Teplice"]
[Date "2019.06.19"]
[Round "5.7"]
[White "Romanov, Evgeny"]
[Black "Cernousek, Lukas"]
[Result "1-0"]
[ECO "A34"]
[WhiteElo "2577"]
[BlackElo "2466"]
[Annotator "ChessBase"]
[PlyCount "79"]
[EventDate "2019.06.15"]
[EventType "swiss"]
[EventCountry "CZE"]
[SourceTitle "playchess.com"]
[Source "ChessBase"]
[SourceQuality "1"]
[TimeControl "40/5400+30:1800+30"]

1. c4 {[%emt 0:06:30]} c5 {[%emt 0:00:00]} 2. Nf3 {[%emt 0:00:20]} Nf6 {[%emt 0:00:00]} 3. Nc3 {[%emt 0:00:16]} d5 {[%emt 0:00:00]} 4. cxd5 {[%emt 0:00:19]} Nxd5 {[%emt 0:00:00]} 5. e4 {[%emt 0:00:11]} Nb4 {[%emt 0:00:29]} 6. Bc4 {[%emt 0:00:10]} Nd3+ {[%emt 0:00:14]} 7. Ke2 {[%emt 0:00:09]} Nf4+ {[%emt 0:00:08]} 8. Kf1 {[%emt 0:00:07]} Nd3 {[%emt 0:00:06]} 9. Ke2 {[%emt 0:00:34]} Nf4+ {[%emt 0:00:07]} 10. Kf1 {[%emt 0:00:03]} Nd3 {[%emt 0:00:07]} 11. Qe2 {[%emt 0:00:09]} Nxc1 {[%emt 0:00:10]} 12. Rxc1 {[%emt 0:00:06]} e6 {[%emt 0:00:09]} 13. Bb5+ {[%emt 0:00:36]} Nd7 {[%emt 0:07:27]} 14. e5 {[%emt 0:00:56]} a6 {[%emt 0:09:03]} 15. Bd3 {[%emt 0:01:21]} Nb6 {[%emt 0:15:42]} 16. Be4 {[%emt 0:05:33]} Nd5 {[%emt 0:00:25]} 17. Qd3 {[%emt 0:04:28]} Nxc3 {[%emt 0:02:37]} 18. Qxc3 {[%emt 0:02:41]} Qb6 {[%emt 0:11:50]} 19. g3 {[%emt 0:19:20]} Bd7 {[%emt 0:21:43]} 20. Kg2 {[%emt 0:00:47]} Be7 {[%emt 0:00:07]} 21. d4 {[%emt 0:05:36]} Rc8 {[%emt 0:15:18]} 22. Rhd1 {[%emt 0:12:25]} O-O {[%emt 0:01:14]} 23. dxc5 {[%emt 0:09:13]} Rxc5 {[%emt 0:00:02]} 24. Bxh7+ {[%emt 0:00:08]} Kxh7 {[%emt 0:00:27]} 25. Qd3+ {[%emt 0:00:12]} Kg8 {[%emt 0:00:12]} 26. Qxd7 {[%emt 0:01:04]} Rxc1 {[%emt 0:01:27]} 27. Rxc1 {[%emt 0:00:02]} Qxb2 {[%emt 0:00:19]} 28. Rc7 {[%emt 0:01:16]} Ba3 {[%emt 0:10:41]} 29. Qd3 {[%emt 0:08:38]} Qxa2 {[%emt 0:03:46]} 30. Rc2 {[%emt 0:00:08]} Qa1 {[%emt 0:00:34]} 31. Ng5 {[%emt 0:14:13]} g6 {[%emt 0:00:00]} 32. Nxe6 {[%emt 0:03:25]} Re8 {[%emt 0:00:12]} 33. Nf4 {[%emt 0:00:26]} Rxe5 {[%emt 0:00:59]} 34. Rc8+ {[%emt 0:00:41]} Kh7 {[%emt 0:00:27]} 35. Qd8 {[%emt 0:02:35]} Re7 {[%emt 0:00:45]} 36. Nd5 {[%emt 0:00:59]} Qe5 {[%emt 0:00:03]} 37. Nxe7 {[%emt 0:00:54]} Qe4+ {[%emt 0:00:33]} 38. Kh3 {[%emt 0:00:21]} Qe6+ {[%emt 0:00:33]} 39. g4 {[%emt 0:00:21]} Qb3+ {[%emt 0:00:06]} 40. Kg2 {[%emt 0:00:10]} 1-0